{"text_format":"1","workbook":"xlsx","n_sheets":9,"sheets":["Intro","Art.4","Art.5","Art.6.A","Art.6.B","Bilan","Synthèse graphique","Synthèse","Améliorations"],"not_rendered":{"charts":2,"images":10,"macros":1,"external_links":0,"defined_names":3,"comments":0,"pivot_tables":0},"unopened":[],"bounds":{"document_bytes":16777216,"sheet_cells":100000,"rows_first":2000,"rows_last":500,"rows_between":2000,"halvings":0,"cell_chars":16384,"cell_head_chars":4096},"cells_cut":0,"cells_raw":0,"read":"whole","date_system":"1900"}

{"sheet":"Intro","index":0,"n_rows":10,"n_cols":14,"rows_kept":10,"cut":false,"hidden":false,"merged":[[10,12,10,17],[11,12,12,17],[13,12,16,17],[5,6,5,11],[5,1,5,4],[5,13,5,16],[8,13,8,16],[9,13,9,16],[7,13,7,16]]}
[null,null,null,null,null,null,null,null,"  Conception centrée sur l'opérateur humain pour:"]
[null,null,null,null,null,null,null,null,"  NF EN ISO 9241-210"]
[null,null,null,null,null,null,null,null,"USAGILITE"]
[null,null,null,null,null,null,null,null,"niveau de satisfaction"]
[]
[null,"Pour bien comprendre le concept:",null,null,null,null,"Pour bien comprendre son fonctionnement:",null,null,null,null,null,null,"Pour évaluer son niveau:"]
[]
[null,null,null,"Voir la vidéo",null,null,null,null,"Lien vers la présentation Scenari",null,null,null,null,"Outil d'autodiagnostic"]
[null,null,null,null,null,null,null,null,null,null,null,null,null,"Vous souhaitez connaitre votre niveau de satisfaction par rapport à la norme?\nVous voulez cibler vos axes d'amélioration?"]
[null,null,null,null,null,null,null,null,null,null,null,null,null,"Cet outil est pour vous:"]

{"sheet":"Art.4","index":1,"n_rows":31,"n_cols":12,"rows_kept":31,"cut":false,"hidden":false,"merged":[[6,9,6,10],[6,7,6,8],[13,2,13,3],[11,2,11,3],[9,2,9,3],[12,7,13,8],[12,9,13,9],[12,10,13,10],[8,7,9,8],[8,9,9,9],[8,10,9,10],[10,7,11,8],[10,9,11,9],[10,10,11,10],[28,1,28,2],[21,2,21,3],[15,2,15,3],[17,2,17,3],[7,7,7,8]]}
[null,"Terminologie employée dans l'outil:"]
[null,"Concepteur développeur: Utilisateur prenant part à la conception du produit et/ou à son développement."]
[null,"Utilisateur représentatif:  Personne représentant l'utilisateur final, aidant à la conception/développement."]
[null,"Utilisateur final: Personne à qui est destiné le produit."]
[null,"Partie prenante: Toute personne ou institution pouvant avoir une influence sur le produit."]
[null,"Feedback: Retour d'expérience, d'information."]
["4.1","1. QUESTIONS GENERALES SUR LES PERSONNES AU PRODUIT :",null,null,null,null,null,"Réponses possibles",null,"Taux de satisfaction           de la norme"]
[null,"En ce qui concerne les personnes impliquées dans la conception et le développement du produit:",null,null,null,null,null,"Oui, tout à fait",null,90,"%",{"$f":"J8/100","v":0.9}]
["4.2.a","  Les utilisateurs finaux du produit sont identifiés.",null,null,null,null,null,"Oui, plutôt",null,65,"%",{"$f":"J9/100","v":0.65}]
[]
["4.3.a","  L'usage final du produit est compris par le concepteur et le développeur. ",null,null,null,null,null,"Non, plutôt pas",null,35,"%",{"$f":"J11/100","v":0.35}]
[]
["4.3.b","  Les utilisateurs représentatifs représentent l'utilisateur final.",null,null,null,null,null,"Non, pas du tout",null,10,"%",{"$f":"J13/100","v":0.1}]
[]
["4.6.b","  Les utilisateurs représentatifs sont impliqués dans les décisions de conception."]
[]
["4.2.b","  Les parties prenantes au produit sont identifiées."]
[]
["4.6.a","  Les concepteurs et les développeurs connaissent l'ensemble des caractéristiques des utilisateurs"]
[null,"   finaux."]
["4.7","  L'équipe de concepteurs et de développeurs est pluridisciplinaire."]
[]
["4.4","  Au cours de la conception et du développement, il existe une grille d'évaluation des besoins de"]
[null,"  l'utilisateur final."]
["4.3.c","  Les utilisateurs représentatifs envoient un feedback régulier de leur évaluation du produit"]
[null,"  aux concepteurs et aux développeurs."]
["4.5","  Les feedbacks des utilisateurs représentatifs sont exploités pour faire évoluer le produit."]
[]
[null,"ATTENTION: Il est important de répondre à toutes les questions afin d'obtenir un diagnostic cohérent.",null,"Nombre de réponses manquantes",{"$f":"10-COUNTA(E25,E19,E15,E27,E17,E11,E9,E13,E21,E23)","v":10}]
[null,null,null,{"$f":"Synthèse!AI4","v":0},"d'avancement."]
[null,null,null,1]

{"sheet":"Art.5","index":2,"n_rows":28,"n_cols":5,"rows_kept":28,"cut":false,"hidden":false,"merged":[[25,1,25,2],[14,2,14,4],[3,2,3,4],[24,2,24,4],[15,1,15,3],[19,1,19,3],[21,1,21,3],[20,1,20,3],[23,1,23,3],[17,1,17,3],[5,1,5,3],[6,1,6,3],[12,1,12,3],[10,1,10,3],[7,1,7,3],[8,1,8,3],[11,1,11,3],[9,1,9,3]]}
[null,"2. QUESTIONS SUR LA PLANIFICATION DE LA CONCEPTION:"]
[null,"Lors de la planification de la conception:"]
["5.1","  L'amélioration est planifiée sur l'ensemble du cycle de vie du produit."]
[]
[null,"  L'organisation de conception inclus à chaque étape …"]
["5.3.f","       … un planning temporel des phases clefs de la conception"]
["5.3.e","       … une liste de points de contrôle portant sur la totalité de la conception"]
["5.3.a'","       … l'identification des méthodes de conception appropriées."]
["5.3.c","       … une stratégie définie des concepteurs et des développeurs."]
["5.3.a","       … l'identification des ressources appropriées."]
["5.3.d","       … des procédures concernant les feedbacks et leurs traçabilités."]
["5.3.b","       … les procédures d'intégration des résultats pour évolution à la phase suivante."]
["5.3.d'","       … des méthodes de communication relatives aux activités."]
["5.5","   La durée de chaque phase de développement est adaptée à chaque instant du"]
[null,"   projet."]
["5.2.a1","  Les parties prenantes prennent en compte les aspects techniques du produit."]
[]
["5.2.a2","  Les parties prenantes prennent en compte l'emploi du produit par rapport à l'utilisateur final."]
[null,"  "]
["5.2.b","  Les risques liés à l'usage du produit par l'utilisateur final sont pris en compte."]
[null,"   (exemples: risques financiers, différenciation incorrecte des produits, sécurité, niveau d'utilisabilité requis, réception...)"]
["5.2.c","  L'environnement lors de l'usage du produit par l'utilisateur final est pris en compte par"]
[null,"  les concepteurs et les développeurs."]
["5.4","  La conception du produit est inclus dans la stratégie d'entreprise."]
[]
[null,"ATTENTION: Il est important de répondre à toutes les questions afin d'obtenir un diagnostic cohérent.",null,"Nombre de réponses manquantes",{"$f":"15-COUNTA(E24,E22,E20,E18,E11,E8,E9,E12,E10,E3,E13,E7,E6,E14,E16)","v":15}]
[null,null,null,{"$f":"Synthèse!AI4","v":0},"d'avancement."]
[null,null,null,1]

{"sheet":"Art.6.A","index":3,"n_rows":38,"n_cols":5,"rows_kept":38,"cut":false,"hidden":false,"merged":[[35,1,35,2],[26,2,26,3],[27,2,27,3],[34,2,34,3],[24,1,24,3],[25,2,25,3],[30,1,30,3],[31,2,31,3],[32,2,32,3],[33,2,33,3],[28,1,28,3],[6,1,6,3],[9,1,9,3],[7,1,7,3],[8,1,8,3],[22,1,22,3],[11,2,11,3],[13,2,13,3],[19,2,19,4],[10,1,10,3],[14,1,14,3],[16,1,16,3],[15,2,15,3],[17,2,17,3]]}
[null,"3. QUESTIONS SUR LA CONCEPTION DU PRODUIT:"]
[null,"En ce qui concerne le contexte d'utilisation pour les concepteurs et les developpeurs:"]
["6.2.2.a","  Les utilisateurs représentatifs connaissent le contexte d'utilisation."]
[]
["6.2.2.a'","  Les parties prenantes connaissent les contraintes et les objectifs du contexte d'utilisation."]
[]
[null,"  Pour les utilisateurs finaux concernés par le produit …"]
["6.2.2.ba","          … leurs connaissances sur le produit sont connus"]
["6.2.2.bb","          … leurs compétences vis-à-vis du produit sont connus."]
["6.2.2.bc","          … les caractéristiques physiques des utilisateurs sont connues."]
["6.2.2.bd","          … le contexte environnemental du produit est connu."]
[]
["6.2.2.c","  La finalité du produit sont décrits."]
[]
["6.2.2.d","  L'environnement technique du produit est identifié."]
[]
["6.2.2.d'","  L'environnement physique (social et culturel) du produit est identifié."]
[]
["6.2.3","  L'environnement social et culturel du produit est identifié."]
[]
[]
[null,"En ce qui concerne les besoins de l'utilisateur:"]
["6.3.2","  Les besoins et les exigences de l'utilisateur déterminent les objectifs et les contraintes du"]
[null,"  produit."]
[null,"Les spécifications du produit tiennent compte …"]
["6.3.3.ab",null,"… D'un contexte d'utilisation et de besoins pouvant évolués."]
["6.3.3.c",null,"… De l'aspect réglementaire relatif au produit."]
["6.3.3.de",null,"… des critères mesurables de satisfaction par rapport au produit et à l'utilisateur"]
["6.3.4","  Si des compromis doivent-être pris entre les exigences, chaque possibilité est étudiée, traçée"]
[null,"  et un choix est fait."]
[null,"  Les spécifications des besoins et des exigences des utilisateurs sont … "]
["6.3.5a",null,"… Vérifiables par des tests à posteriori."]
["6.3.5b",null,"… vérifiables par les parties prenantes appropriées."]
["6.3.5c",null,"… cohérentes entre elles."]
["6.3.5d",null,"… actualisées si besoin lors du développement du produit."]
[null,"ATTENTION: Il est important de répondre à toutes les questions afin d'obtenir un diagnostic cohérent.",null,"Nombre de réponses manquantes",{"$f":"19-COUNTA(E26,E23,E28,E11,E8,E17,E19,E10,E3,E13,E15,E5,E9,E32,E29,E33,E34,E35,E27)","v":19}]
[null,null,null,{"$f":"Synthèse!AI4","v":0},"d'avancement."]
[null,null,null,1]

{"sheet":"Art.6.B","index":4,"n_rows":35,"n_cols":5,"rows_kept":35,"cut":false,"hidden":false,"merged":[[20,2,20,3],[25,1,25,4],[8,1,8,3],[9,1,9,3],[24,1,24,3],[32,1,32,2],[3,2,3,4],[11,2,11,4],[13,2,13,4],[30,1,30,3],[7,2,7,4],[16,1,16,3],[22,1,22,3],[23,2,23,4],[18,2,18,3],[19,2,19,3],[17,2,17,3],[28,1,28,3],[21,2,21,3],[26,1,26,3],[5,2,5,4]]}
[null,"4. QUESTIONS SUR LA CONCEPTION DU PRODUIT:"]
[null,"En ce qui concerne les solutions de conception:"]
["6.4.2a","  Après tests, le produit est jugé intuitif, simple d'utilisation et ergonomique."]
[]
["6.4.2b","  Le produit est adaptable, contrôlable et modifiable. "]
[]
["6.4.2c","  Le produit permet une interopérabilité réactive et s'adapte à l'utilisateur au fur et à mesure."]
[]
["6.4.3","  Les prototypes (scénarios, simulations, modèles, maquettes…) proposés lors de la conception du"]
[null,"  produit sont bien matérialisés."]
["6.4.4","  Les prototypes de ce produit sont soumis à évaluation/test."]
[]
["6.4.5","  L'évaluation/test des prototypes permettent un bon feedback de la part des utilisateurs."]
[]
[]
[null,"En ce qui concerne l'évaluation de la conception:"]
[null,"  Chaque évaluation/test permet de … "]
["6.5.1c",null," … Mesurer la satisfaction utilisateur."]
["6.5.1a",null," … Réevaluer les besoins utilisateurs."]
["6.5.1b",null," … Avoir un retour sur les solutions de conceptions du point de vue des utilisateurs."]
["6.5.1d",null," … Comparer différentes options ou références de conception."]
["6.5.1e",null," … Vérifier la conformité vis-à-vis de la réglementation."]
["6.5.2","  Chaque évaluation/test est planifié.e, analysé.e et traçé.e."]
[]
["6.5.3","  Les méthodes d'évaluation (les ressources, les évaluateurs, le niveau d'exigence) sont ré-adaptées"]
[]
["6.5.4","  Les évaluations/tests sur prototypes sont faits par les utilisateurs, même après mise sur le marché"]
[null,"  où des inspections sont faites en complément."]
["6.5.6","  Les risques, les exigences utilisateurs et la réglementation sont réévaluées périodiquement."]
[]
["6.5.6'","  Un suivi à long terme du produit est effectué."]
[]
[null,"ATTENTION: Il est important de répondre à toutes les questions afin d'obtenir un diagnostic cohérent.",null,"Nombre de réponses manquantes",{"$f":"16-COUNTA(E20,E18,E22,E25,E23,E19,E29,E7,E11,E13,E27,E31,E3,E21,E5,E9)","v":16}]
[null,null,null,{"$f":"Synthèse!AI4","v":0},"d'avancement."]
[null,null,null,1]

{"sheet":"Bilan","index":5,"n_rows":25,"n_cols":13,"rows_kept":25,"cut":false,"hidden":false,"merged":[[15,5,15,10],[3,6,3,10],[4,6,4,10]]}
[null,null,null,null,null,"  NF EN ISO 9241-210"]
[null,null,null,null,null,"   ERGONOMIE DE L'INTERACTION  HOMME-SYSTÈME. Conception centrée sur l'opérateur humain:"]
[null,null,null,null,null,null,null,null,null,null,null,null,{"$f":"NOW()","v":43136.711887847225}]
[{"$f":"IFERROR((RANK(D4,$D$4:$D$9,1)+(0.0001*ROW())),\"\")","v":""},{"$f":"RANK(A4,$A$4:$A$9,1)","v":{"$error":"#VALUE!"}},"A - Produit, contexte d'utilisation et satisfactions des exigences",{"$f":"Synthèse!Y31","v":""},null,null,{"$f":"TODAY()","v":"2018-02-05"}]
["",{"$error":"#VALUE!"},"B - Prise en compte des utilisateurs",{"$f":"Synthèse!Q31","v":""},null,"Temps passé sur le questionnaire:"]
["",{"$error":"#VALUE!"},"C - Communication, feedback et interaction",{"$f":"Synthèse!M31","v":""},null,{"$f":"M5-M4","v":"00:00:00"},"Pourcentage obtenu:",null,null,null,{"$f":"IF(OR(G7,G8,G9,G10,G11,G12),\"Axes d'amélioration à envisager (par ordre de priorité):\",\"\")","v":{"$error":"#VALUE!"}}]
["",{"$error":"#VALUE!"},"D - Implication des parties prenantes",{"$f":"Synthèse!U31","v":""},null,{"$f":"VLOOKUP(1,$B$4:$D$9,2,FALSE)","v":{"$error":"#N/A"}},{"$f":"IFERROR(VLOOKUP(1,$B$4:$D$9,3,FALSE),\"\")","v":""},{"$f":"IF(G7<0.25,\"1\",IF(G7>0.8,\"4\",IF(AND(G7>0.25,G7<0.5),\"2\",\"3\")))","v":"4"},{"$f":"LEFT(F7,1)","v":{"$error":"#N/A"}},{"$f":"CONCATENATE(I7,H7)","v":{"$error":"#N/A"}},{"$f":"+VLOOKUP(J7,Améliorations!$A$8:$B$31,2,FALSE)","v":{"$error":"#N/A"}}]
["",{"$error":"#VALUE!"},"E - Contexte du projet et ressources engagées",{"$f":"Synthèse!I31","v":""},null,{"$f":"VLOOKUP(2,$B$4:$D$9,2,FALSE)","v":{"$error":"#N/A"}},{"$f":"IFERROR(VLOOKUP(2,$B$4:$D$9,3,FALSE),\"\")","v":""},"4",{"$error":"#N/A"},{"$error":"#N/A"},{"$f":"+VLOOKUP(J8,Améliorations!$A$8:$B$31,2,FALSE)","v":{"$error":"#N/A"}}]
["",{"$error":"#VALUE!"},"F - Stratégie et politique d'entreprise",{"$f":"Synthèse!E31","v":""},null,{"$f":"VLOOKUP(3,$B$4:$D$9,2,FALSE)","v":{"$error":"#N/A"}},{"$f":"IFERROR(VLOOKUP(3,$B$4:$D$9,3,FALSE),\"\")","v":""},"4",{"$error":"#N/A"},{"$error":"#N/A"},{"$f":"+VLOOKUP(J9,Améliorations!$A$8:$B$31,2,FALSE)","v":{"$error":"#N/A"}}]
[null,null,null,null,null,{"$f":"VLOOKUP(4,$B$4:$D$9,2,FALSE)","v":{"$error":"#N/A"}},{"$f":"IFERROR(VLOOKUP(4,$B$4:$D$9,3,FALSE),\"\")","v":""},"4",{"$error":"#N/A"},{"$error":"#N/A"},{"$f":"+VLOOKUP(J10,Améliorations!$A$8:$B$31,2,FALSE)","v":{"$error":"#N/A"}}]
[null,null,null,null,null,{"$f":"VLOOKUP(5,$B$4:$D$9,2,FALSE)","v":{"$error":"#N/A"}},{"$f":"IFERROR(VLOOKUP(5,$B$4:$D$9,3,FALSE),\"\")","v":""},"4",{"$error":"#N/A"},{"$error":"#N/A"},{"$f":"+VLOOKUP(J11,Améliorations!$A$8:$B$31,2,FALSE)","v":{"$error":"#N/A"}}]
[null,null,null,null,null,{"$f":"VLOOKUP(6,$B$4:$D$9,2,FALSE)","v":{"$error":"#N/A"}},{"$f":"IFERROR(VLOOKUP(6,$B$4:$D$9,3,FALSE),\"\")","v":""},"4",{"$error":"#N/A"},{"$error":"#N/A"},{"$f":"+VLOOKUP(J12,Améliorations!$A$8:$B$31,2,FALSE)","v":{"$error":"#N/A"}}]
[null,null,null,null,null,"MOYENNE GLOBALE",{"$f":"AVERAGE(G7:G12)","v":{"$error":"#DIV/0!"}},null,null,null,{"$f":"IF(G13<0.25,Améliorations!C32,IF(G13>0.75,Améliorations!C35,IF(AND(G13<0.5,G13>0.26),Améliorations!C33,Améliorations!C34)))","v":{"$error":"#DIV/0!"}}]
[{"$f":"VLOOKUP(1,$B$4:$D$9,2,FALSE)","v":{"$error":"#N/A"}},{"$f":"LEFT(A14,1)","v":{"$error":"#N/A"}},{"$f":"VLOOKUP(1,$B$4:$D$9,3,FALSE)","v":{"$error":"#N/A"}}]
[{"$f":"VLOOKUP(2,$B$4:$D$9,2,FALSE)","v":{"$error":"#N/A"}},{"$error":"#N/A"},{"$f":"VLOOKUP(2,$B$4:$D$9,3,FALSE)","v":{"$error":"#N/A"}}]
[{"$f":"VLOOKUP(3,$B$4:$D$9,2,FALSE)","v":{"$error":"#N/A"}},{"$error":"#N/A"},{"$f":"VLOOKUP(3,$B$4:$D$9,3,FALSE)","v":{"$error":"#N/A"}}]
[{"$f":"VLOOKUP(4,$B$4:$D$9,2,FALSE)","v":{"$error":"#N/A"}},{"$error":"#N/A"},{"$f":"VLOOKUP(4,$B$4:$D$9,3,FALSE)","v":{"$error":"#N/A"}}]
[{"$f":"VLOOKUP(5,$B$4:$D$9,2,FALSE)","v":{"$error":"#N/A"}},{"$error":"#N/A"},{"$f":"VLOOKUP(5,$B$4:$D$9,3,FALSE)","v":{"$error":"#N/A"}}]
[{"$f":"VLOOKUP(6,$B$4:$D$9,2,FALSE)","v":{"$error":"#N/A"}},{"$error":"#N/A"},{"$f":"VLOOKUP(6,$B$4:$D$9,3,FALSE)","v":{"$error":"#N/A"}}]
[null,"A",{"$f":"+VLOOKUP(B20,$B$14:$C$19,2,FALSE)","v":{"$error":"#N/A"}}]
[null,"B",{"$error":"#N/A"}]
[null,"C",{"$error":"#N/A"}]
[null,"D",{"$error":"#N/A"}]
[null,"E",{"$error":"#N/A"}]
[null,"F",{"$error":"#N/A"}]

{"sheet":"Synthèse graphique","index":6,"n_rows":28,"n_cols":26,"rows_kept":28,"cut":false,"hidden":false,"merged":[[13,0,13,2],[10,0,10,1],[9,0,9,1],[8,0,8,1],[3,0,3,1],[5,0,5,1],[4,0,4,1]]}
[]
[]
[]
["RESULTATS DE"]
[" L'EVALUATION au"]
[{"$f":"TODAY()","v":"2018-02-05"}]
[]
[]
["NORME DANS"]
["SA GLOBALITE ="]
[{"$f":"IFERROR(Bilan!G13,\"\")","v":""}]
[]
[]
["Temps passé sur le questionnaire:",null,null,{"$f":"Bilan!M5-Bilan!M4","v":"00:00:00"}]
[]
[]
[]
[]
[]
[]
[]
[]
[null,null,null,null,null,null,null,null,null,null,null,null,null,null,null,null,null,null,null,null,null,null,null,null,"A",{"$f":"Synthèse!Y31","v":""}]
[null,null,null,null,null,null,null,null,null,null,null,null,null,null,null,null,null,null,null,null,null,null,null,null,"B",{"$f":"Synthèse!Q31","v":""}]
[null,null,null,null,null,null,null,null,null,null,null,null,null,null,null,null,null,null,null,null,null,null,null,null,"C",{"$f":"Synthèse!M31","v":""}]
[null,null,null,null,null,null,null,null,null,null,null,null,null,null,null,null,null,null,null,null,null,null,null,null,"D",{"$f":"Synthèse!U31","v":""}]
[null,null,null,null,null,null,null,null,null,null,null,null,null,null,null,null,null,null,null,null,null,null,null,null,"E",{"$f":"Synthèse!I31","v":""}]
[null,null,null,null,null,null,null,null,null,null,null,null,null,null,null,null,null,null,null,null,null,null,null,null,"F",{"$f":"Synthèse!E31","v":""}]

{"sheet":"Synthèse","index":7,"n_rows":63,"n_cols":35,"rows_kept":63,"cut":false,"hidden":true,"merged":[[1,4,1,7],[1,24,1,27],[30,24,30,27],[1,20,1,23],[1,16,1,19],[1,12,1,15],[1,8,1,11],[30,4,30,7],[30,8,30,11],[30,12,30,15],[30,16,30,19],[30,20,30,23]]}
[null,"Réponses"]
[null,null,null,null,"F- Stratégie et politique d'entreprise",null,null,null,"E- Contexte du projet et ressources engagées",null,null,null,"C- Communication, feedback et interaction",null,null,null,"B- Prise en compte des utilisateurs",null,null,null,"D- Implication des parties prenantes",null,null,null,"A- Produit, contexte d'utilisation et satisfactions des exigences"]
[null,null,"%",null,"5.2.c",1,{"$f":"IFERROR(IF(H3,F3,\"\"),\"\")","v":""},{"$f":"IFERROR((VLOOKUP(E3,$A:$C,3,FALSE)*F3),\"\")","v":""},"5.3.a",0.125,{"$f":"IFERROR(IF(L3,J3,\"\"),\"\")","v":""},{"$f":"IFERROR((VLOOKUP(I3,$A:$C,3,FALSE)*J3),\"\")","v":""},"4.4",0.5,{"$f":"IFERROR(IF(P3,N3,\"\"),\"\")","v":""},{"$f":"IFERROR((VLOOKUP(M3,$A:$C,3,FALSE)*N3),\"\")","v":""},"4.2.a",1,{"$f":"IFERROR(IF(T3,R3,\"\"),\"\")","v":""},{"$f":"IFERROR((VLOOKUP(Q3,$A:$C,3,FALSE)*R3),\"\")","v":""},"4.2.b",1,{"$f":"IFERROR(IF(X3,V3,\"\"),\"\")","v":""},{"$f":"IFERROR((VLOOKUP(U3,$A:$C,3,FALSE)*V3),\"\")","v":""},"4.4",0.5,{"$f":"IFERROR(IF(AB3,Z3,\"\"),\"\")","v":""},{"$f":"IFERROR((VLOOKUP(Y3,$A:$C,3,FALSE)*Z3),\"\")","v":""},null,null,"Nb de réponses manquantes","Nb de réponses répondues","Nb de questions",null,"% avancement"]
["4.2.a",{"$f":"VLOOKUP(A4,Art.4!$A:$E,5,FALSE)","v":0},{"$f":"IF(B4=1,$AF$11,IF(B4=2,$AF$12,IF(B4=3,$AF$13,IF(B4=4,$AF$14,IF(B4=5,$AF$15,\"\")))))","v":""},null,"5.3.c",0.1,{"$f":"IFERROR(IF(H4,F4,\"\"),\"\")","v":""},{"$f":"IFERROR((VLOOKUP(E4,$A:$C,3,FALSE)*F4),\"\")","v":""},"5.3.a'",0.125,{"$f":"IFERROR(IF(L4,J4,\"\"),\"\")","v":""},"","4.3.c",1,{"$f":"IFERROR(IF(P4,N4,\"\"),\"\")","v":""},"","4.3.b",1,"","","4.3.a",1,{"$f":"IFERROR(IF(X4,V4,\"\"),\"\")","v":""},"","5.1",0.5,{"$f":"IFERROR(IF(AB4,Z4,\"\"),\"\")","v":""},"",null,"Chap.4",{"$f":"COUNTIF(B3:B13,\"0\")","v":10},{"$f":"AG4-AE4","v":0},10,null,{"$f":"AF8/AG8","v":0}]
["4.2.b",{"$f":"VLOOKUP(A5,Art.4!$A:$E,5,FALSE)","v":0},"",null,"5.4",1,{"$f":"IFERROR(IF(H5,F5,\"\"),\"\")","v":""},{"$f":"IFERROR((VLOOKUP(E5,$A:$C,3,FALSE)*F5),\"\")","v":""},"5.3.e",0.125,{"$f":"IFERROR(IF(L5,J5,\"\"),\"\")","v":""},"","4.5",1,"","","4.6.a",1,"","","4.6.b",1,{"$f":"IFERROR(IF(X5,V5,\"\"),\"\")","v":""},"","5.2.a1",0,{"$f":"IFERROR(IF(AB5,Z5,\"\"),\"\")","v":""},"",null,"Chap.5",{"$f":"COUNTIF(B14:B28,\"0\")","v":15},{"$f":"AG5-AE5","v":0},15,null,100]
["4.3.a",{"$f":"VLOOKUP(A6,Art.4!$A:$E,5,FALSE)","v":0},"",null,"6.2.2.c",0.3,"","","5.3.f",0.125,"","","5.1",0.5,"","","6.2.2.a",1,"","","4.7",1,"","","5.2.a2",1,"","",null,"Chap.6-A",{"$f":"COUNTIF(B29:B47,\"0\")","v":19},{"$f":"AG6-AE6","v":0},19]
["4.3.b",{"$f":"VLOOKUP(A7,Art.4!$A:$E,5,FALSE)","v":0},"",null,"6.3.2",0.2,"","","5.5",0.7,"","","5.3.b",0.125,"","","6.2.2.ba",0.8,"","","5.3.c",0.1,"","","5.2.b",1,"","",null,"Chap.6-B",{"$f":"COUNTIF(B48:B62,\"0\")","v":15},{"$f":"AG7-AE7","v":0},15]
["4.3.c",{"$f":"VLOOKUP(A8,Art.4!$A:$E,5,FALSE)","v":0},"",null,"6.3.3.c",0.2,"","","6.2.2.d",1,"","","5.3.d",0.125,{"$f":"IFERROR(IF(P8,N8,\"\"),\"\")","v":""},"","6.2.2.bb",0.8,"","","6.2.2.a'",1,"","","6.2.3",0.7,"","",null,"Total",{"$f":"SUM(AE4:AE7)","v":59},{"$f":"SUM(AF4:AF7)","v":0},{"$f":"SUM(AG4:AG7)","v":59}]
["4.4",{"$f":"VLOOKUP(M3,Art.4!$A:$E,5,FALSE)","v":0},"",null,"6.3.4",0.4,"","","6.2.2.d'",1,{"$f":"IFERROR(IF(L9,J9,\"\"),\"\")","v":""},"","5.3.d'",0.125,"","","6.2.2.bc",0.8,"","","6.2.2.ba",0.2,"","","6.3.2",0.4,"",""]
["4.5",{"$f":"VLOOKUP(A10,Art.4!$A:$E,5,FALSE)","v":0},"",null,"6.5.1c",7.0000000000000007E-2,"","","6.4.3",0.6,{"$f":"IFERROR(IF(L10,J10,\"\"),\"\")","v":""},"","5.5",0.3,"","","6.2.2.bd",0.8,"","","6.2.2.bb",0.2,{"$f":"IFERROR(IF(X10,V10,\"\"),\"\")","v":""},"","6.3.3.ab",0.2,"","",null,null,null,null,"Nb réponses de chaque"]
["4.6.a",{"$f":"VLOOKUP(A11,Art.4!$A:$E,5,FALSE)","v":0},"",null,"6.5.1e",7.0000000000000007E-2,{"$f":"IFERROR(IF(H11,F11,\"\"),\"\")","v":""},"","6.5.2",0.4,{"$f":"IFERROR(IF(L11,J11,\"\"),\"\")","v":""},"","6.2.2.c",0.7,"","","6.3.5b",0.2,"","","6.2.2.bc",0.2,"","","6.3.3.c",0.2,"","",null,null,"Oui, tout à fait",{"$f":"Art.4!L8","v":0.9},{"$f":"COUNTIF(C4:C62,AF11)","v":0},{"$f":"AG11*100/$AG$17","v":0}]
["4.6.b",{"$f":"VLOOKUP(A12,Art.4!$A:$E,5,FALSE)","v":0},"",null,"6.5.2",0.4,{"$f":"IFERROR(IF(H12,F12,\"\"),\"\")","v":""},"","6.5.3",0.4,{"$f":"IFERROR(IF(L12,J12,\"\"),\"\")","v":""},"","6.2.3",0.3,"","","6.4.2a",0.5,{"$f":"IFERROR(IF(T12,R12,\"\"),\"\")","v":""},"","6.2.2.bd",0.2,"","","6.3.3.de",0.2,"","",null,null,"Oui, plutôt",{"$f":"Art.4!L9","v":0.65},{"$f":"COUNTIF(C5:C62,AF12)","v":0},0]
["4.7",{"$f":"VLOOKUP(A13,Art.4!$A:$E,5,FALSE)","v":0},"",null,"6.5.4",0.4,{"$f":"IFERROR(IF(H13,F13,\"\"),\"\")","v":""},"","6.5.6",0.3,{"$f":"IFERROR(IF(L13,J13,\"\"),\"\")","v":""},"","6.3.2",0.4,"","","6.4.2c",0.35,"","","6.3.5b",0.2,{"$f":"IFERROR(IF(X13,V13,\"\"),\"\")","v":""},"","6.3.5a",1,"","",null,null,"Non, plutôt pas",{"$f":"Art.4!L11","v":0.35},{"$f":"COUNTIF(C6:C63,AF13)","v":0},0]
["5.1",{"$f":"VLOOKUP(A14,Art.5!$A:$E,5,FALSE)","v":0},"",null,"6.5.6",0.3,{"$f":"IFERROR(IF(H14,F14,\"\"),\"\")","v":""},"","6.5.6'",0.3,{"$f":"IFERROR(IF(L14,J14,\"\"),\"\")","v":""},{"$f":"IFERROR((VLOOKUP(I14,$A:$C,3,FALSE)*J14),\"\")","v":""},"6.3.3.ab",0.2,"","","6.5.1a",7.0000000000000007E-2,"","","6.4.5",0.5,{"$f":"IFERROR(IF(X14,V14,\"\"),\"\")","v":""},"","6.3.5b",0.2,"","",null,null,"Non, pas du tout",{"$f":"Art.4!L13","v":0.1},{"$f":"COUNTIF(C7:C64,AF14)","v":0},0]
["5.2.a1",{"$f":"VLOOKUP(A15,Art.5!$A:$E,5,FALSE)","v":0},"",null,"6.5.6'",0.3,{"$f":"IFERROR(IF(H15,F15,\"\"),\"\")","v":""},"",null,null,null,null,"6.3.4",0.6,"","","6.5.1b",7.0000000000000007E-2,"","","6.5.3",0.3,{"$f":"IFERROR(IF(X15,V15,\"\"),\"\")","v":""},"","6.3.5c",1,"","",null,null,"Pas concerné",null,{"$f":"COUNTIF(C8:C65,AF15)","v":0},0]
["5.2.a2",{"$f":"VLOOKUP(A16,Art.5!$A:$E,5,FALSE)","v":0},"",null,null,null,null,null,null,null,null,null,"6.3.5d",0.2,"","","6.5.1c",7.0000000000000007E-2,"","",null,null,null,null,"6.3.5d",0.2,"","",null,null,"Non répondu",null,{"$f":"AE8","v":59},100]
["5.2.b",{"$f":"VLOOKUP(A17,Art.5!$A:$E,5,FALSE)","v":0},"",null,null,null,null,null,null,null,null,null,"6.4.2a",0.5,"","","6.5.4",0.3,"","",null,null,null,null,"6.4.2c",0.35,"","",null,null,null,null,59]
["5.2.c",{"$f":"VLOOKUP(A18,Art.5!$A:$E,5,FALSE)","v":0},"",null,null,null,null,null,null,null,null,null,"6.4.2b",1,{"$f":"IFERROR(IF(P18,N18,\"\"),\"\")","v":""},"",null,null,null,null,null,null,null,null,"6.4.4",0.4,{"$f":"IFERROR(IF(AB18,Z18,\"\"),\"\")","v":""},""]
["5.3.a",{"$f":"VLOOKUP(A19,Art.5!$A:$E,5,FALSE)","v":0},"",null,null,null,null,null,null,null,null,null,"6.4.2c",0.35,{"$f":"IFERROR(IF(P19,N19,\"\"),\"\")","v":""},"",null,null,null,null,null,null,null,null,"6.5.1a",7.0000000000000007E-2,{"$f":"IFERROR(IF(AB19,Z19,\"\"),\"\")","v":""},""]
["5.3.a'",{"$f":"VLOOKUP(A20,Art.5!$A:$E,5,FALSE)","v":0},"",null,null,null,null,null,null,null,null,null,"6.4.3",0.4,"","",null,null,null,null,null,null,null,null,"6.5.1b",7.0000000000000007E-2,{"$f":"IFERROR(IF(AB20,Z20,\"\"),\"\")","v":""},""]
["5.3.b",{"$f":"VLOOKUP(A21,Art.5!$A:$E,5,FALSE)","v":0},"",null,null,null,null,null,null,null,null,null,"6.4.4",0.6,"","",null,null,null,null,null,null,null,null,"6.5.1c",7.0000000000000007E-2,{"$f":"IFERROR(IF(AB21,Z21,\"\"),\"\")","v":""},""]
["5.3.c",{"$f":"VLOOKUP(A22,Art.5!$A:$E,5,FALSE)","v":0},"",null,null,null,null,null,null,null,null,null,"6.4.5",0.5,"","",null,null,null,null,null,null,null,null,"6.5.1d",7.0000000000000007E-2,{"$f":"IFERROR(IF(AB22,Z22,\"\"),\"\")","v":""},""]
["5.3.d",{"$f":"VLOOKUP(A23,Art.5!$A:$E,5,FALSE)","v":0},"",null,null,null,null,null,null,null,null,null,"6.5.1a",7.0000000000000007E-2,"","",null,null,null,null,null,null,null,null,"6.5.1e",7.0000000000000007E-2,{"$f":"IFERROR(IF(AB23,Z23,\"\"),\"\")","v":""},""]
["5.3.d'",{"$f":"VLOOKUP(A24,Art.5!$A:$E,5,FALSE)","v":0},"",null,null,null,null,null,null,null,null,null,"6.5.1b",7.0000000000000007E-2,"","",null,null,null,null,null,null,null,null,"6.5.3",0.3,{"$f":"IFERROR(IF(AB24,Z24,\"\"),\"\")","v":""},""]
["5.3.e",{"$f":"VLOOKUP(A25,Art.5!$A:$E,5,FALSE)","v":0},"",null,null,null,null,null,null,null,null,null,"6.5.1c",7.0000000000000007E-2,"","",null,null,null,null,null,null,null,null,"6.5.4",0.3,{"$f":"IFERROR(IF(AB25,Z25,\"\"),\"\")","v":""},""]
["5.3.f",{"$f":"VLOOKUP(A26,Art.5!$A:$E,5,FALSE)","v":0},"",null,null,null,null,null,null,null,null,null,"6.5.1d",7.0000000000000007E-2,"","",null,null,null,null,null,null,null,null,"6.5.6",0.2,{"$f":"IFERROR(IF(AB26,Z26,\"\"),\"\")","v":""},""]
["5.4",{"$f":"VLOOKUP(A27,Art.5!$A:$E,5,FALSE)","v":0},"",null,null,null,null,null,null,null,null,null,"6.5.1e",7.0000000000000007E-2,{"$f":"IFERROR(IF(P27,N27,\"\"),\"\")","v":""},"",null,null,null,null,null,null,null,null,"6.5.6'",0.3,{"$f":"IFERROR(IF(AB27,Z27,\"\"),\"\")","v":""},{"$f":"IFERROR((VLOOKUP(Y27,$A:$C,3,FALSE)*Z27),\"\")","v":""}]
["5.5",{"$f":"VLOOKUP(A28,Art.5!$A:$E,5,FALSE)","v":0},"",null,null,null,null,null,null,null,null,null,"6.5.2",0.2,"",""]
["6.2.2.a",{"$f":"VLOOKUP(A29,Art.6.A!$A:$E,5,FALSE)","v":0},"",null,null,null,null,null,null,null,null,null,"6.5.6",0.2,{"$f":"IFERROR(IF(P29,N29,\"\"),\"\")","v":""},{"$f":"IFERROR((VLOOKUP(M29,$A:$C,3,FALSE)*N29),\"\")","v":""}]
["6.2.2.a'",{"$f":"VLOOKUP(A30,Art.6.A!$A:$E,5,FALSE)","v":0},"",null,null,null,null,null,null,null,null,null,"6.5.6'",0.1,"",""]
["6.2.2.ba",{"$f":"VLOOKUP(A31,Art.6.A!$A:$E,5,FALSE)","v":0},"","Moyenne",{"$f":"IFERROR(IF(F32=0,\"\",(SUM(H3:H14))/(SUM(G3:G14))),\"\")","v":""},null,null,null,{"$f":"IFERROR(IF(J32=0,\"\",(SUM(L3:L13))/(SUM(K3:K13))),\"\")","v":""},null,null,null,{"$f":"IFERROR(IF(N32=0,\"\",(SUM(P3:P30))/(SUM(O3:O30))),\"\")","v":""},null,null,null,{"$f":"IFERROR(IF(R32=0,\"\",(SUM(T3:T17))/(SUM(S3:S17))),\"\")","v":""},null,null,null,{"$f":"IFERROR(IF(V32=0,\"\",(SUM(X3:X15))/(SUM(W3:W15))),\"\")","v":""},null,null,null,{"$f":"IFERROR(IF(Z32=0,\"\",(SUM(AB3:AB26))/(SUM(AA3:AA26))),\"\")","v":""}]
["6.2.2.bb",{"$f":"VLOOKUP(A32,Art.6.A!$A:$E,5,FALSE)","v":0},{"$f":"IF(B32=1,$AF$11,IF(B32=2,$AF$12,IF(B32=3,$AF$13,IF(B32=4,$AF$14,IF(B32=5,$AF$15,\"\")))))","v":""},null,null,{"$f":"(SUM(H3:H14))/(SUM(G3:G14))","v":{"$error":"#DIV/0!"}},null,null,null,{"$f":"(SUM(L3:L13))/(SUM(K3:K13))","v":{"$error":"#DIV/0!"}},null,null,null,{"$f":"(SUM(P3:P30))/(SUM(O3:O30))","v":{"$error":"#DIV/0!"}},null,null,null,{"$f":"(SUM(T3:T17))/(SUM(S3:S17))","v":{"$error":"#DIV/0!"}},null,null,null,{"$f":"(SUM(X3:X15))/(SUM(W3:W15))","v":{"$error":"#DIV/0!"}},null,null,null,{"$f":"(SUM(AB3:AB26))/(SUM(AA3:AA26))","v":{"$error":"#DIV/0!"}}]
["6.2.2.bc",{"$f":"VLOOKUP(A33,Art.6.A!$A:$E,5,FALSE)","v":0},""]
["6.2.2.bd",{"$f":"VLOOKUP(A34,Art.6.A!$A:$E,5,FALSE)","v":0},""]
["6.2.2.c",{"$f":"VLOOKUP(A35,Art.6.A!$A:$E,5,FALSE)","v":0},{"$f":"IF(B35=1,$AF$11,IF(B35=2,$AF$12,IF(B35=3,$AF$13,IF(B35=4,$AF$14,IF(B35=5,$AF$15,\"\")))))","v":""}]
["6.2.2.d",{"$f":"VLOOKUP(A36,Art.6.A!$A:$E,5,FALSE)","v":0},""]
["6.2.2.d'",{"$f":"VLOOKUP(A37,Art.6.A!$A:$E,5,FALSE)","v":0},""]
["6.2.3",{"$f":"VLOOKUP(A38,Art.6.A!$A:$E,5,FALSE)","v":0},""]
["6.3.2",{"$f":"VLOOKUP(A39,Art.6.A!$A:$E,5,FALSE)","v":0},""]
["6.3.3.ab",{"$f":"VLOOKUP(A40,Art.6.A!$A:$E,5,FALSE)","v":0},""]
["6.3.3.c",{"$f":"VLOOKUP(A41,Art.6.A!$A:$E,5,FALSE)","v":0},""]
["6.3.3.de",{"$f":"VLOOKUP(A42,Art.6.A!$A:$E,5,FALSE)","v":0},""]
["6.3.4",{"$f":"VLOOKUP(A43,Art.6.A!$A:$E,5,FALSE)","v":0},""]
["6.3.5a",{"$f":"VLOOKUP(A44,Art.6.A!$A:$E,5,FALSE)","v":0},""]
["6.3.5b",{"$f":"VLOOKUP(A45,Art.6.A!$A:$E,5,FALSE)","v":0},""]
["6.3.5c",{"$f":"VLOOKUP(A46,Art.6.A!$A:$E,5,FALSE)","v":0},""]
["6.3.5d",{"$f":"VLOOKUP(A47,Art.6.A!$A:$E,5,FALSE)","v":0},""]
["6.4.2a",{"$f":"VLOOKUP(A48,Art.6.B!$A:$E,5,FALSE)","v":0},""]
["6.4.2b",{"$f":"VLOOKUP(A49,Art.6.B!$A:$E,5,FALSE)","v":0},{"$f":"IF(B49=1,$AF$11,IF(B49=2,$AF$12,IF(B49=3,$AF$13,IF(B49=4,$AF$14,IF(B49=5,$AF$15,\"\")))))","v":""}]
["6.4.2c",{"$f":"VLOOKUP(A50,Art.6.B!$A:$E,5,FALSE)","v":0},""]
["6.4.3",{"$f":"VLOOKUP(A51,Art.6.B!$A:$E,5,FALSE)","v":0},{"$f":"IF(B51=1,$AF$11,IF(B51=2,$AF$12,IF(B51=3,$AF$13,IF(B51=4,$AF$14,IF(B51=5,$AF$15,\"\")))))","v":""}]
["6.4.4",{"$f":"VLOOKUP(A52,Art.6.B!$A:$E,5,FALSE)","v":0},""]
["6.4.5",{"$f":"VLOOKUP(A53,Art.6.B!$A:$E,5,FALSE)","v":0},""]
["6.5.1a",{"$f":"VLOOKUP(A54,Art.6.B!$A:$E,5,FALSE)","v":0},""]
["6.5.1b",{"$f":"VLOOKUP(A55,Art.6.B!$A:$E,5,FALSE)","v":0},""]
["6.5.1c",{"$f":"VLOOKUP(A56,Art.6.B!$A:$E,5,FALSE)","v":0},""]
["6.5.1d",{"$f":"VLOOKUP(A57,Art.6.B!$A:$E,5,FALSE)","v":0},""]
["6.5.1e",{"$f":"VLOOKUP(A58,Art.6.B!$A:$E,5,FALSE)","v":0},{"$f":"IF(B58=1,$AF$11,IF(B58=2,$AF$12,IF(B58=3,$AF$13,IF(B58=4,$AF$14,IF(B58=5,$AF$15,\"\")))))","v":""}]
["6.5.2",{"$f":"VLOOKUP(A59,Art.6.B!$A:$E,5,FALSE)","v":0},{"$f":"IF(B59=1,$AF$11,IF(B59=2,$AF$12,IF(B59=3,$AF$13,IF(B59=4,$AF$14,IF(B59=5,$AF$15,\"\")))))","v":""}]
["6.5.3",{"$f":"VLOOKUP(A60,Art.6.B!$A:$E,5,FALSE)","v":0},{"$f":"IF(B60=1,$AF$11,IF(B60=2,$AF$12,IF(B60=3,$AF$13,IF(B60=4,$AF$14,IF(B60=5,$AF$15,\"\")))))","v":""}]
["6.5.4",{"$f":"VLOOKUP(A61,Art.6.B!$A:$E,5,FALSE)","v":0},{"$f":"IF(B61=1,$AF$11,IF(B61=2,$AF$12,IF(B61=3,$AF$13,IF(B61=4,$AF$14,IF(B61=5,$AF$15,\"\")))))","v":""}]
["6.5.6",{"$f":"VLOOKUP(A62,Art.6.B!$A:$E,5,FALSE)","v":0},{"$f":"IF(B62=1,$AF$11,IF(B62=2,$AF$12,IF(B62=3,$AF$13,IF(B62=4,$AF$14,IF(B62=5,$AF$15,\"\")))))","v":""}]
["6.5.6'",{"$f":"VLOOKUP(A63,Art.6.B!$A:$E,5,FALSE)","v":0},{"$f":"IF(B63=1,$AF$11,IF(B63=2,$AF$12,IF(B63=3,$AF$13,IF(B63=4,$AF$14,IF(B63=5,$AF$15,\"\")))))","v":""}]

{"sheet":"Améliorations","index":8,"n_rows":35,"n_cols":8,"rows_kept":35,"cut":false,"hidden":true,"merged":[]}
[null,null,"F","E","D","C ","B","A"]
[null,null,"Stratégie et politique d'entreprise","Contexte du projet et ressources engagées","Implication des parties prenantes","Communication, feedback et interaction","Prise en compte des utilisateurs","Produit, contexte d'utilisation et satisfactions des exigences"]
["<25%",1,"La politique d'entreprise doit être clairement engagée et les stratégies bien définies au départ.","Le contexte du projet n'est pas suffisamment défini et les ressources semblent manquantes: l'environnement doit être un atout dans la conception du projet.","Les parties prenantes n'ont pas une vision suffisamment globale du projet: tous les points clefs doivent être connus.","La communication, les feedbacks et les interactions  au sein du projet sont insuffisantes pour une bonne itération concernant une conception centrée sur l'opérateur humain.","Les utilisateurs ne sont pas suffisamment entendus alors qu'ils sont le point névralgique d'une bonne conception centrée sur l'opérateur humain.","Le produit, le contexte d'utilisation et la satisfaction des exigences des utilisateurs doivent être pris en compte au cours de la conception et doivent être remis en cause régulièrement."]
["Entre 25 et 50%",2,"La politique d'entreprise doit être plus engagée et les stratégies mieux définies au démarrage du projet.","Le contexte du projet est mal défini et les ressources semblent insuffisantes: l'environnement doit être un atout dans la conception du projet.","Les parties prenantes n'ont pas une vision complète du projet: tous les points clefs doivent être connus.","La communication, les feedbacks et les interactions  au sein du projet sont présentes mais pas suffisamment complète pour une bonne itération concernant une conception centrée sur l'opérateur humain.","Les utilisateurs sont entendus mais pas suffisamment. Ils sont le point névralgique d'une bonne conception centrée sur l'opérateur humain.","Le produit, le contexte d'utilisation et la satisfaction des exigences des utilisateurs ne sont pas suffisamment pris en compte au cours de la conception et doivent être remis en cause régulièrement."]
["Entre 50 et 80%",3,"La politique d'entreprise et les stratégies sont définies mais devraient être approfondies.","Le contexte du projet est défini et les ressources semblent suffisantes mais peuvent être améliorés.","Les parties prenantes ont une vision assez globale du projet mais tous les points clefs doivent bien être connus.","La communication, les feedbacks et les interactions  au sein du projet manquent de précision pour une bonne itération concernant une conception centrée sur l'opérateur humain.","Les utilisateurs devraient être entendus plus en détails pour une bonne conception centrée sur l'opérateur humain.","Le produit, le contexte d'utilisation et la satisfaction des exigences des utilisateurs sont pris en compte au cours de la conception mais doivent être remis en cause plus régulièrement."]
[">80%",4,"La politique d'entreprise et les stratégies sont assez bien définies.","Le contexte du projet et les ressources semblent corrects.","Les parties prenantes ont une vision assez complète du projet.","La communication, les feedbacks et les interactions  au sein du projet semblent corrects pour une bonne itération concernant une conception centrée sur l'opérateur humain.","Les utilisateurs semblent suffisamment entendus  pour une bonne conception centrée sur l'opérateur humain.","Le produit, le contexte d'utilisation et la satisfaction des exigences des utilisateurs semblent suffisamment pris en compte au cours de la conception."]
[]
["F1","   La politique d'entreprise doit être clairement engagée et les stratégies bien définies au départ."]
["F2","   La politique d'entreprise doit être clairement engagée et les stratégies mieux définies au démarrage du projet."]
["F3","   La politique d'entreprise et les stratégies sont définies mais devraient être approfondies."]
["F4","   La politique d'entreprise et les stratégies sont assez bien définies."]
["E1","   Le contexte du projet n'est pas suffisamment défini et les ressources semblent manquantes: l'environnement doit être un atout dans la conception du projet."]
["E2","   Le contexte du projet est mal défini et les ressources semblent insuffisantes: l'environnement doit être un atout dans la conception du projet."]
["E3","   Le contexte du projet est défini et les ressources semblent suffisantes mais peuvent être améliorés."]
["E4","   Le contexte du projet et les ressources semblent corrects."]
["D1","   Les parties prenantes n'ont pas une vision suffisamment globale du projet: tous les points clefs doivent être connus."]
["D2","   Les parties prenantes n'ont pas une vision complète du projet: tous les points clefs doivent être connus."]
["D3","   Les parties prenantes ont une vision assez globale du projet mais tous les points clefs doivent bien être connus."]
["D4","   Les parties prenantes ont une vision assez complète du projet."]
["C1","   La communication, les feedbacks et les interactions  au sein du projet sont insuffisantes pour une bonne itération concernant une conception centrée sur l'opérateur humain."]
["C2","   La communication, les feedbacks et les interactions  au sein du projet sont présentes mais pas suffisamment complète pour une bonne itération concernant une conception centrée sur l'opérateur humain."]
["C3","   La communication, les feedbacks et les interactions  au sein du projet manquent de précision pour une bonne itération concernant une conception centrée sur l'opérateur humain."]
["C4","   La communication, les feedbacks et les interactions  au sein du projet semblent corrects pour une bonne itération concernant une conception centrée sur l'opérateur humain."]
["B1","   Les utilisateurs ne sont pas suffisamment entendus alors qu'ils sont le point névralgique d'une bonne conception centrée sur l'opérateur humain."]
["B2","   Les utilisateurs sont entendus mais pas suffisamment. Ils sont le point névralgique d'une bonne conception centrée sur l'opérateur humain."]
["B3","   Les utilisateurs devraient être entendus plus en détails pour une bonne conception centrée sur l'opérateur humain."]
["B4","   Les utilisateurs semblent suffisamment entendus  pour une bonne conception centrée sur l'opérateur humain."]
["A1","   Le produit, le contexte d'utilisation et la satisfaction des exigences des utilisateurs doivent être pris en compte au cours de la conception et doivent être remis en cause régulièrement."]
["A2","   Le produit, le contexte d'utilisation et la satisfaction des exigences des utilisateurs ne sont pas suffisamment pris en compte au cours de la conception et doivent être remis en cause régulièrement."]
["A3","   Le produit, le contexte d'utilisation et la satisfaction des exigences des utilisateurs sont pris en compte au cours de la conception mais doivent être remis en cause plus régulièrement."]
["A4","   Le produit, le contexte d'utilisation et la satisfaction des exigences des utilisateurs semblent suffisamment pris en compte au cours de la conception."]
["Moyenne","0-25","   L'application de la norme est insatisfaisante. Revérifier chaque point et assurez-vous de sa bonne compréhension."]
["Globale","25-50","   L'application de la norme est peu satisfaisante. Revérifier chaque point et assurez-vous de sa cohérence vis-à-vis de la méthode employée."]
[null,"50-75","   L'application de la norme est partiellement satisfaisante. Revérifier chaque point et assurez-vous de sa bonne mise en pratique."]
[null,"75-100","   L'application de la norme est globalement satisfaisante. Pensez à revérifier chaque point régulièrement afin de ne pas s'éloigner de la méthode."]